bitfinex-derivatives/quotes_SOLF0:USTF0_20230105
["timestamp","ask_amount","ask_price","bid_price","bid_amount"]
[1672881965289,43.62630663,13.208,13.203,15.07]
[1672881970965,10.0,13.207,13.203,14.86784074]
[1672881971175,43.62630663,13.208,13.203,14.86784074]
[1672881971382,0.06570663,13.208,13.207,15.1]
[1672881971596,0.06967637,13.212,13.208,10.0]
[1672881971797,0.06967637,13.212,13.208,25.1]
[1672881972008,0.06967637,13.212,13.21,15.07]
[1672881972222,44.77522073,13.216,13.21,15.07]
[1672881975693,0.07052073,13.216,13.213,15.09]
[1672881975903,0.06122801,13.219,13.213,15.09]
[1672881976324,0.06122801,13.219,13.214,15.02]
[1672881981791,0.06122801,13.219,13.218,15.1]
[1672881982002,0.06619423,13.223,13.218,15.1]
[1672881982212,0.06619423,13.223,13.215,10.0]
[1672881982213,0.06925605,13.225,13.221,15.1]
[1672881982529,0.0677388,13.228,13.221,15.1]
[1672881982949,10.0677388,13.228,13.221,15.1]
[1672881984210,0.0677388,13.228,13.221,15.1]
[1672881984420,10.0677388,13.228,13.221,15.1]
[1672881985050,43.4503,13.229,13.221,15.1]
[1672881993453,43.4503,13.229,13.226,15.02]
[1672881993669,43.4503,13.229,13.222,10.0]
[1672881993670,43.4503,13.229,13.224,15.1]
[1672881993875,43.4503,13.229,13.223,0.06829127]
[1672882002813,0.06235831,13.23,13.225,15.09]
[1672882003024,0.06235831,13.23,13.226,10.0]
[1672882003654,0.06235831,13.23,13.225,15.09]
[1672882004068,0.06235831,13.23,13.226,15.07]
[1672882004285,0.06235831,13.23,13.228,15.09]
[1672882004493,41.73296709,13.234,13.228,15.09]
[1672882005547,41.73296709,13.234,13.23,15.02]
[1672882006377,41.73296709,13.234,13.228,15.09]
[1672882007011,41.73296709,13.234,13.226,0.0606065]
[1672882007012,10.0,13.233,13.226,0.0606065]
[1672882007230,108.208,13.233,13.226,0.0606065]
[1672882007644,51.528,13.233,13.226,0.0606065]
[1672882007860,41.528,13.232,13.226,0.0606065]
[1672882008073,10.0,13.231,13.226,0.0606065]
[1672882010064,10.0,13.231,13.218,15.1]
[1672882010276,14.95,13.226,13.215,15.02]
[1672882010593,10.0,13.225,13.216,10.0]
[1672882010802,10.0,13.225,13.215,15.02]
[1672882011329,10.06620122,13.225,13.215,15.08685927]
[1672882011642,0.06620122,13.225,13.215,15.08685927]
[1672882012063,0.06620122,13.225,13.216,25.1]
[1672882012274,0.06620122,13.225,13.217,10.0]
[1672882012691,0.06620122,13.225,13.218,15.09]
[1672882012906,0.06620122,13.225,13.219,10.0]
[1672882013112,0.06620122,13.225,13.22,15.07]
[1672882013321,0.06620122,13.225,13.222,15.1]
[1672882013532,0.0620795,13.228,13.222,15.1]
[1672882013743,0.06745867,13.23,13.222,15.1]
[1672882016580,0.06745867,13.23,13.22,15.16099162]
[1672882016791,44.00705867,13.23,13.22,15.16099162]
[1672882016996,44.00705867,13.23,13.222,15.02]
[1672882017523,10.0,13.229,13.222,15.02]
[1672882017739,10.0,13.229,13.22,15.16099162]
[1672882017949,43.9396,13.228,13.22,15.16099162]
[1672882018161,43.9396,13.228,13.223,15.09]
[1672882020154,43.9396,13.228,13.22,15.16099162]
[1672882021835,43.9396,13.228,13.222,15.04]
[1672882022776,0.06745867,13.23,13.222,15.04]
[1672882022992,0.06745867,13.23,13.226,15.04]
[1672882023201,0.06745867,13.23,13.227,25.07]
[1672882023413,0.06571623,13.233,13.227,25.07]
[1672882023623,0.06604904,13.235,13.233,0.14482359]
[1672882023831,10.0,13.237,13.233,0.14482359]
[1672882024459,52.2927,13.237,13.233,0.14482359]
[1672882024881,42.2927,13.237,13.233,0.14482359]
[1672882028664,42.18698754,13.237,13.233,0.14482359]
[1672882030244,0.06393646,13.239,13.233,0.14482359]
[1672882030245,0.06393646,13.239,13.235,15.07]
[1672882030452,0.06393646,13.239,13.237,15.1]
[1672882030658,0.06222682,13.243,13.237,15.1]
[1672882030865,0.06951855,13.245,13.239,15.09]
[1672882031080,0.06951855,13.245,13.24,9.80496477]
[1672882031287,0.06951855,13.245,13.239,15.09]
[1672882031713,0.06951855,13.245,13.242,15.09]
[1672882031921,0.06828176,13.248,13.242,15.09]
[1672882032125,0.06056782,13.25,13.242,15.09]
[1672882032764,0.06056782,13.25,13.24,15.08407254]
[1672882032975,15.16056782,13.25,13.24,0.06407254]
[1672882033289,15.1,13.241,13.229,15.1]
[1672882033496,15.1,13.239,13.228,15.1]
[1672882033707,10.0,13.238,13.228,15.1]
[1672882034225,25.1,13.239,13.231,0.06758709]
[1672882034436,0.06810864,13.24,13.231,0.06758709]
[1672882034655,0.06810864,13.24,13.231,15.15758709]
[1672882035071,15.16810864,13.24,13.231,0.06758709]
[1672882035277,10.0,13.239,13.231,0.06758709]
[1672882038332,0.06810864,13.24,13.233,45.07482359]
[1672882039486,0.06810864,13.24,13.236,44.74]
[1672882039697,0.06810864,13.24,13.237,10.0]
[1672882040011,10.07043217,13.243,13.237,10.0]
[1672882040217,0.07043217,13.243,13.236,44.74]
[1672882041273,0.07043217,13.243,13.238,45.03]
[1672882041483,0.07043217,13.243,13.239,10.0]
[1672882042115,0.07043217,13.243,13.238,45.03]
[1672882042532,0.07043217,13.243,13.236,44.75]
[1672882042743,0.07043217,13.243,13.237,10.0]
[1672882043161,0.07043217,13.243,13.239,10.0]
[1672882043367,0.07043217,13.243,13.24,44.84]
[1672882043591,0.06955385,13.246,13.241,10.0]
[1672882043900,0.0642829,13.248,13.24,44.84]
[1672882044112,0.0642829,13.248,13.241,10.0]
[1672882044534,0.0642829,13.248,13.24,44.84]
[1672882044740,0.0642829,13.248,13.241,10.0]
[1672882045162,0.0642829,13.248,13.24,44.84]
[1672882045586,0.0642829,13.248,13.241,10.0]
[1672882045900,0.0642829,13.248,13.24,44.84]
[1672882046110,0.0642829,13.248,13.241,10.0]
[1672882046311,0.0642829,13.248,13.24,44.84]
[1672882046523,0.0642829,13.248,13.241,10.0]
[1672882047166,0.0642829,13.248,13.244,44.75]
[1672882047372,0.0642829,13.248,13.245,10.0]
[1672882047575,42.9054,13.25,13.244,44.75]
[1672882047789,42.80179723,13.25,13.244,44.75]
[1672882049473,10.0,13.249,13.242,0.07026942]
[1672882051045,0.16024799,13.251,13.242,45.00026942]
[1672882051781,0.16024799,13.251,13.242,0.07026942]
[1672882053145,45.03634799,13.251,13.242,0.07026942]
[1672882053784,45.7447,13.25,13.242,0.07026942]
[1672882053994,10.0,13.249,13.242,0.07026942]
[1672882054938,45.7447,13.25,13.242,44.81026942]
[1672882056412,54.75,13.249,13.242,0.07026942]
[1672882056614,155.3621,13.249,13.242,0.07026942]
[1672882056830,10.0,13.246,13.242,0.07026942]
[1672882057151,10.0,13.244,13.242,0.07026942]
[1672882057463,10.0,13.244,13.238,0.062553]
[1672882057673,10.0,13.244,13.236,10.07073878]
[1672882057881,54.0021,13.244,13.236,0.07073878]
[1672882058408,44.0021,13.243,13.236,0.07073878]
[1672882058619,44.0021,13.243,13.227,44.75]
[1672882058620,44.75,13.24,13.227,44.75]
[1672882058935,10.0,13.239,13.228,10.0]
[1672882059569,0.06838967,13.238,13.229,0.0661675]
[1672882063764,41.29218967,13.238,13.229,0.0661675]
[1672882064613,10.0,13.237,13.229,0.0661675]
[1672882067234,44.7816,13.236,13.229,0.0661675]
[1672882067444,10.0,13.235,13.229,0.0661675]
[1672882071969,42.8246,13.234,13.229,0.0661675]
[1672882072180,10.0,13.233,13.229,0.0661675]
[1672882075230,10.0,13.233,13.229,6.75e-05]
[1672882075436,54.79,13.233,13.229,6.75e-05]
[1672882075646,10.0,13.231,13.229,6.75e-05]
[1672882075850,10.0,13.231,13.22,44.74]
[1672882076273,0.06765303,13.23,13.221,0.062789]
[1672882080906,10.0,13.229,13.221,0.062789]
[1672882081125,44.9699,13.228,13.221,0.062789]
[1672882081430,10.0,13.227,13.221,0.062789]
[1672882082266,44.9699,13.227,13.221,0.062789]
[1672882082481,10.0,13.226,13.221,0.062789]
[1672882082901,44.9699,13.227,13.221,0.062789]
[1672882083742,0.06765303,13.23,13.221,0.062789]
[1672882084057,0.06765303,13.23,13.221,44.802789]
[1672882084576,45.04225303,13.23,13.221,44.802789]
[1672882085207,45.04225303,13.23,13.222,10.0]
[1672882085424,45.04225303,13.23,13.225,44.74]
[1672882085634,45.04225303,13.23,13.226,10.0]
[1672882085950,0.06765303,13.23,13.227,44.75]
[1672882086159,0.06343556,13.233,13.228,10.0]
[1672882086369,10.0,13.234,13.228,10.0]
[1672882086792,0.06189234,13.235,13.228,54.73]
[1672882087526,10.0,13.236,13.235,0.01766985]
[1672882088051,44.3937,13.237,13.235,0.01766985]
[1672882099305,10.0,13.236,13.231,0.06415548]
[1672882100146,44.3937,13.237,13.231,0.06415548]
[1672882108348,53.435,13.236,13.231,0.06415548]
[1672882108559,10.0,13.235,13.231,0.06415548]
[1672882109295,10.0,13.235,13.231,5.548e-05]
[1672882109504,10.0,13.235,13.224,44.73]
[1672882110028,111.78,13.235,13.223,44.8]
[1672882110444,0.06083947,13.234,13.224,0.06206724]
[1672882112237,0.06083947,13.234,13.217,45.11]
[1672882112238,44.76,13.23,13.217,45.11]
[1672882112551,45.11,13.228,13.216,44.8]
[1672882112762,10.0,13.227,13.216,44.8]
[1672882113392,0.06293274,13.226,13.216,44.8]
[1672882114230,0.06293274,13.226,13.216,14.98]
[1672882114648,10.0,13.225,13.215,14.98]
[1672882116964,15.12293274,13.226,13.215,14.98]
[1672882117181,0.06293274,13.226,13.216,15.01]
[1672882117391,43.4902,13.225,13.216,15.01]
[1672882117707,10.0,13.224,13.216,15.01]
[1672882118021,10.0,13.224,13.214,14.99]
[1672882118227,43.4902,13.223,13.214,14.99]
[1672882118438,10.0,13.222,13.214,14.99]
[1672882119280,43.4902,13.223,13.214,14.99]
[1672882119904,0.06917933,13.224,13.219,14.99]
[1672882123588,0.06917933,13.224,13.215,10.0]
[1672882123799,0.06917933,13.224,13.219,15.01]
[1672882127156,584.0,13.229,13.224,0.06848713]
[1672882127580,15.06,13.233,13.224,0.06848713]
[1672882127788,45.1112,13.234,13.224,15.12848713]
[1672882128109,10.0,13.232,13.226,15.01]
[1672882130946,45.1112,13.233,13.226,15.01]
[1672882132419,45.1112,13.233,13.228,15.01]
[1672882136827,45.1112,13.233,13.228,15.06]
[1672882137457,45.1112,13.233,13.224,0.13352372]
[1672882137673,45.1112,13.233,13.228,14.98]
[1672882140195,45.1112,13.233,13.224,0.13352372]
[1672882140403,45.1112,13.233,13.228,15.06]
[1672882140718,44.94532991,13.233,13.228,15.06]
[1672882142506,10.0,13.232,13.225,15.01]
[1672882143873,44.94532991,13.233,13.225,15.01]
[1672882146918,44.94532991,13.233,13.226,15.06]
[1672882147340,44.94532991,13.233,13.227,10.0]
[1672882148289,44.94532991,13.233,13.226,15.06]
[1672882155119,10.0,13.232,13.226,14.95263918]
[1672882157747,44.94532991,13.233,13.226,14.95263918]
[1672882161109,0.06982028,13.234,13.229,15.06]
[1672882161321,0.06982028,13.234,13.231,14.99]
[1672882161531,0.06465426,13.237,13.231,14.99]
[1672882161742,10.0,13.238,13.231,14.99]
[1672882165104,43.811531,13.239,13.231,14.99]
[1672882165418,0.068931,13.239,13.235,15.01]
[1672882165629,0.068931,13.239,13.236,10.0]
[1672882165840,0.06263156,13.242,13.235,15.01]
[1672882166051,0.0612088,13.243,13.235,15.01]
[1672882167421,0.0612088,13.243,13.234,15.04756075]
[1672882167736,42.3653088,13.243,13.234,15.04756075]
[1672882168048,10.0,13.242,13.234,15.04756075]
[1672882168994,9.8853553,13.242,13.234,15.04756075]
[1672882169623,15.06,13.241,13.234,0.06756075]
[1672882169837,14.94,13.239,13.234,0.06756075]
[1672882170039,10.0,13.238,13.234,0.06756075]
[1672882170251,10.0,13.238,13.234,6.075e-05]
[1672882170457,10.0,13.238,13.228,15.06]
[1672882170672,15.06,13.237,13.226,15.06]
[1672882170879,10.0,13.236,13.226,15.06]
[1672882171615,10.06560589,13.236,13.226,15.06]
[1672882172879,0.06560589,13.236,13.228,14.98]
[1672882173090,0.06560589,13.236,13.229,10.0]
[1672882173729,0.06560589,13.236,13.228,14.98]
[1672882176347,0.06560589,13.236,13.23,15.01]
[1672882176558,0.06560589,13.236,13.231,10.0]
[1672882177189,0.06560589,13.236,13.23,15.01]
[1672882178027,0.06560589,13.236,13.23,65.01]
[1672882178244,0.00560589,13.236,13.235,15.06]
[1672882178453,43.9201,13.244,13.235,15.06]
[1672882178762,43.9201,13.244,13.236,10.0]
[1672882178976,25.06,13.25,13.239,10.0]
[1672882179182,52.83629912,13.249,13.24,0.06597253]
[1672882179504,10.0,13.248,13.24,0.06597253]
[1672882182233,25.06,13.248,13.24,0.06597253]
[1672882182443,58.8057,13.247,13.24,0.06597253]
[1672882182762,10.0,13.246,13.24,0.06597253]
[1672882183074,43.7457,13.245,13.24,0.06597253]
[1672882183388,10.0,13.244,13.24,0.06597253]
[1672882184343,53.7457,13.244,13.24,0.06597253]
[1672882184650,43.7457,13.244,13.24,0.06597253]
[1672882184860,10.0,13.248,13.24,0.06597253]
[1672882185074,53.7457,13.248,13.24,0.06597253]
[1672882186328,43.7457,13.248,13.24,0.06597253]
[1672882186647,43.7457,13.248,13.241,14.98]
[1672882186856,45.079,13.247,13.241,14.98]
[1672882191269,45.01320425,13.247,13.241,14.98]
[1672882191479,10.0,13.246,13.241,14.98]
[1672882193580,10.0,13.246,13.24,0.06597253]
[1672882193890,45.01320425,13.247,13.24,0.06597253]
[1672882194106,45.01320425,13.247,13.24,15.12597253]
[1672882195149,10.0,13.246,13.24,15.12597253]
[1672882196309,10.0,13.246,13.24,0.06597253]
[1672882196630,54.7564,13.246,13.24,0.06597253]
[1672882197566,54.7564,13.246,13.24,7.253e-05]
[1672882197776,10.0,13.244,13.24,7.253e-05]
[1672882198311,15.06,13.241,13.226,15.06]
[1672882198519,15.06,13.236,13.224,15.06]
[1672882198732,10.0,13.235,13.226,15.06]
[1672882198936,10.0,13.235,13.227,10.0]
[1672882199148,0.06378583,13.236,13.23,15.06]
[1672882199783,0.06378583,13.236,13.228,15.06]
[1672882200618,0.06378583,13.236,13.23,15.06]
[1672882202306,0.06378583,13.236,13.235,15.06]
[1672882202619,0.06413873,13.24,13.235,15.06]
[1672882202832,0.06332114,13.242,13.236,15.06]
[1672882203040,0.06964721,13.244,13.236,15.06]
[1672882207769,0.06964721,13.244,13.241,14.99]
[1672882207979,0.06473869,13.247,13.241,14.99]
[1672882208922,0.06473869,13.247,13.242,14.99]
[1672882209134,0.06473869,13.247,13.244,15.06]
[1672882209449,0.06809822,13.25,13.244,15.06]
[1672882210395,0.06809822,13.25,13.245,10.0]
[1672882210609,0.06809822,13.25,13.247,15.06]
[1672882210820,0.1,13.251,13.248,10.0]
[1672882211134,0.1,13.251,13.247,15.06]
[1672882211340,0.06858876,13.253,13.25,15.06]
[1672882211662,0.06165221,13.256,13.251,14.99]
[1672882211872,0.06497665,13.258,13.249,14.98]
[1672882212495,14.94,13.255,13.244,15.06]
[1672882212711,15.06,13.25,13.239,25.06]
[1672882212921,10.0,13.249,13.239,25.06]
[1672882213233,10.0,13.249,13.239,15.06]
[1672882214286,15.12012398,13.25,13.239,15.06]
[1672882214490,15.12012398,13.25,13.235,10.0]
[1672882214491,0.06012398,13.25,13.244,14.99]
[1672882214701,0.06012398,13.25,13.245,14.98]
[1672882215125,0.06012398,13.25,13.247,14.99]
[1672882215336,0.06093069,13.253,13.247,14.99]
[1672882215650,0.0658494,13.255,13.247,14.99]
[1672882218073,0.0658494,13.255,13.247,45.31]
[1672882218281,0.0658494,13.255,13.248,55.31]
[1672882218702,0.0658494,13.255,13.249,10.0]
[1672882218914,0.0658494,13.255,13.248,55.31]
[1672882219119,0.0658494,13.255,13.249,10.0]
[1672882219329,0.0658494,13.255,13.248,55.31]
[1672882219652,0.0658494,13.255,13.249,10.0]
[1672882220493,0.0658494,13.255,13.254,45.37]
[1672882220703,0.06563233,13.259,13.254,45.37]
[1672882220914,0.06352397,13.261,13.254,45.37]
[1672882221124,0.06035882,13.262,13.255,10.0]
[1672882221437,0.06035882,13.262,13.254,45.37]
[1672882221649,0.06035882,13.262,13.254,10.0]
[1672882222073,0.06035882,13.262,13.253,45.06]
[1672882222274,0.06035882,13.262,13.251,45.37]
[1672882222492,45.37,13.26,13.247,55.31]
[1672882222701,10.06704648,13.259,13.247,45.31]
[1672882227855,42.3345,13.258,13.247,45.31]
[1672882228162,45.37,13.25,13.237,45.31]
[1672882228377,0.06380788,13.248,13.237,45.31]
[1672882230482,45.37,13.246,13.233,45.37]
[1672882230687,0.06311511,13.244,13.233,45.37]
[1672882231004,0.06311511,13.244,13.235,45.05]
[1672882231213,0.06311511,13.244,13.237,10.0]
[1672882231633,0.06311511,13.244,13.236,45.37]
[1672882231837,0.06311511,13.244,13.237,10.0]
[1672882232368,0.06311511,13.244,13.236,10.0]
[1672882232578,0.06311511,13.244,13.235,45.37]
[1672882233004,0.06311511,13.244,13.234,10.0]
[1672882233320,0.06311511,13.244,13.233,45.37]
[1672882234792,45.43311511,13.244,13.231,45.37]
[1672882235101,10.0,13.241,13.23,95.37]
[1672882235317,0.06074216,13.24,13.23,95.37]
[1672882235844,0.06074216,13.24,13.23,45.37]
[1672882236255,0.06074216,13.24,13.228,45.31]
[1672882236468,45.37,13.239,13.226,45.37]
[1672882236678,0.06032593,13.237,13.226,45.37]
[1672882236998,0.06032593,13.237,13.227,10.0]
[1672882237205,0.06032593,13.237,13.226,45.37]
[1672882238148,0.06032593,13.237,13.228,45.37]
[1672882238356,0.06134967,13.237,13.229,10.0]
[1672882238775,0.06134967,13.237,13.228,45.37]
[1672882239200,0.06134967,13.237,13.232,45.37]
[1672882239617,0.06134967,13.237,13.233,10.0]
[1672882240255,0.06134967,13.237,13.232,45.37]
[1672882240465,0.06134967,13.237,13.233,10.0]
[1672882241091,0.06134967,13.237,13.234,45.31]
[1672882241298,0.06865119,13.24,13.235,10.0]
[1672882241515,0.06562813,13.242,13.235,10.0]
[1672882243727,0.06562813,13.242,13.234,45.31]
[1672882243926,0.06562813,13.242,13.235,10.0]
[1672882244673,0.06562813,13.242,13.234,45.31]
[1672882244886,0.06562813,13.242,13.235,10.0]
[1672882245727,0.06562813,13.242,13.234,45.31]
[1672882246043,0.06562813,13.242,13.235,10.0]
[1672882248250,0.06562813,13.242,13.234,45.31]
[1672882248565,0.06562813,13.242,13.235,10.0]
[1672882249302,0.06562813,13.242,13.234,45.31]
[1672882249510,0.06562813,13.242,13.235,10.0]
[1672882251087,0.06562813,13.242,13.234,45.31]
[1672882251401,0.06562813,13.242,13.235,10.0]
[1672882252663,0.06562813,13.242,13.234,45.37]
[1672882252975,0.06562813,13.242,13.235,10.0]
[1672882253503,0.06562813,13.242,13.234,45.37]
[1672882253710,0.06562813,13.242,13.235,10.0]
[1672882255497,0.06562813,13.242,13.234,45.37]
[1672882255707,0.06562813,13.242,13.235,10.0]
[1672882256233,0.06562813,13.242,13.234,45.37]
[1672882256443,0.06562813,13.242,13.235,10.0]
[1672882257287,0.06562813,13.242,13.234,45.37]
[1672882257496,0.06562813,13.242,13.235,10.0]
[1672882257919,0.06562813,13.242,13.234,45.37]
[1672882258227,0.06562813,13.242,13.235,10.0]
[1672882258438,0.06562813,13.242,13.234,45.37]
[1672882258649,0.06562813,13.242,13.235,10.0]
[1672882259376,0.06562813,13.242,13.234,45.37]
[1672882259592,0.06562813,13.242,13.231,55.37]
[1672882263264,10.06562813,13.242,13.231,45.37]
[1672882265058,55.43562813,13.242,13.23,45.37]
[1672882265271,44.0591,13.241,13.231,10.0]
[1672882265483,10.0,13.24,13.231,10.0]
[1672882266215,10.0,13.24,13.23,55.37]
[1672882266420,10.0,13.24,13.23,45.37]
[1672882267783,45.37,13.239,13.226,45.37]
[1672882267999,10.0,13.236,13.225,10.0]
[1672882268209,10.0,13.236,13.225,24.9]
[1672882268414,10.0,13.236,13.226,10.0]
[1672882268830,10.0,13.236,13.225,14.9]
[1672882269466,51.8429,13.236,13.225,14.9]
[1672882270731,15.04,13.234,13.222,15.01]
[1672882270941,10.06101027,13.233,13.223,10.0]
[1672882271571,0.06101027,13.233,13.226,14.9]
[1672882271882,0.06101027,13.233,13.229,65.04]
[1672882272091,0.06101027,13.233,13.231,15.04]
[1672882272412,0.06706347,13.237,13.231,15.04]
[1672882272725,15.10617597,13.239,13.227,14.97]
[1672882272939,14.9,13.237,13.225,24.97]
[1672882273359,10.0,13.236,13.225,24.97]
[1672882273566,0.06338718,13.235,13.225,24.97]
[1672882274823,0.06338718,13.235,13.229,65.04]
[1672882275148,0.06338718,13.235,13.231,15.04]
[1672882277031,0.06338718,13.235,13.232,15.01]
[1672882277237,0.06916708,13.238,13.233,10.0]
[1672882277454,10.0,13.239,13.233,10.0]
[1672882277661,0.07119909,13.24,13.232,15.01]
[1672882282080,0.07119909,13.24,13.233,10.0]
[1672882284606,0.07119909,13.24,13.236,15.01]
[1672882284803,0.07119909,13.24,13.237,10.0]
[1672882285126,0.06331631,13.243,13.237,25.04]
[1672882285333,0.06056963,13.245,13.239,15.01]
[1672882285546,0.06706436,13.247,13.241,15.04]
[1672882287119,0.06706436,13.247,13.237,10.0]
[1672882287435,42.5154,13.257,13.247,0.11542292]
[1672882287652,42.5154,13.257,13.249,14.97]
[1672882287860,42.5154,13.257,13.25,10.0]
[1672882288594,42.5154,13.257,13.249,15.04029671]
[1672882290385,42.5154,13.257,13.249,44.97029671]
[1672882291122,42.5154,13.257,13.251,44.9]
[1672882293014,0.06060259,13.258,13.253,45.35]
[1672882293537,0.06060259,13.258,13.254,10.0]
[1672882294588,0.06060259,13.258,13.255,44.9]
[1672882294802,42.3106,13.263,13.256,10.0]
[1672882295428,0.07035495,13.264,13.257,45.35]
[1672882295633,0.07035495,13.264,13.258,10.0]
[1672882297208,0.07035495,13.264,13.256,10.0]
[1672882297635,0.07035495,13.264,13.257,45.35]
[1672882297843,0.07035495,13.264,13.258,10.0]
[1672882299110,0.07035495,13.264,13.257,45.35]
[1672882299526,0.07035495,13.264,13.258,10.0]
[1672882301005,44.796,13.267,13.264,0.10596991]
[1672882303630,10.0,13.266,13.264,6.991e-05]
[1672882304156,10.0,13.266,13.261,0.0695839]
[1672882304890,44.796,13.267,13.261,0.0695839]
[1672882308891,0.06757267,13.27,13.262,45.35]
[1672882309101,0.06757267,13.27,13.263,10.0]
[1672882309308,0.06757267,13.27,13.268,45.35]
[1672882309517,0.06770616,13.274,13.269,55.1]
[1672882309730,0.06024684,13.276,13.271,45.35]
[1672882309938,0.06547409,13.278,13.271,45.35]
[1672882310572,0.06547409,13.278,13.272,10.0]
[1672882311203,0.06547409,13.278,13.276,45.1]
[1672882311408,0.06091349,13.282,13.277,10.0]
[1672882311619,0.06091349,13.282,13.275,0.0636621]
[1672882311836,45.16091349,13.282,13.275,0.0636621]
[1672882312360,10.0,13.281,13.275,0.0636621]
[1672882313305,52.3903,13.281,13.275,0.0636621]
[1672882314037,45.21,13.28,13.275,0.0636621]
[1672882314247,87.6003,13.28,13.275,0.0636621]
[1672882314459,10.0,13.279,13.275,0.0636621]
[1672882315085,52.3903,13.279,13.275,0.0636621]
[1672882315295,10.0,13.278,13.268,10.0]
[1672882315723,42.3903,13.279,13.268,10.0]
[1672882315936,42.3903,13.279,13.269,45.35]
[1672882316146,10.0,13.278,13.27,10.0]
[1672882316354,0.06686085,13.279,13.273,45.35]
[1672882316567,0.07086713,13.281,13.275,45.35]
[1672882316778,0.06820253,13.283,13.275,45.35]
[1672882316986,0.06820253,13.283,13.276,10.0]
[1672882319720,0.06820253,13.283,13.275,45.35]
[1672882320035,0.06820253,13.283,13.276,10.0]
[1672882321076,45.21,13.278,13.273,0.06178952]
[1672882321504,10.0,13.277,13.273,0.06178952]
[1672882321925,55.3464,13.277,13.273,0.06178952]
[1672882322764,45.3464,13.277,13.273,0.06178952]
[1672882326018,0.06621517,13.28,13.273,0.06178952]
[1672882326762,0.06621517,13.28,13.273,10.06178952]
[1672882327283,0.06621517,13.28,13.273,0.06178952]
[1672882328129,45.41621517,13.28,13.273,0.06178952]
[1672882328334,10.0,13.279,13.273,0.06178952]
[1672882328868,0.1608372,13.273,13.267,45.1]
[1672882329076,0.1608372,13.273,13.268,10.0]
[1672882329698,0.1608372,13.273,13.267,45.1]
[1672882330441,0.1608372,13.273,13.265,45.35]
[1672882330756,0.1608372,13.273,13.262,54.9]
[1672882330967,0.06129259,13.272,13.262,54.9]
[1672882332220,0.06129259,13.272,13.262,44.9]
[1672882332434,0.06129259,13.272,13.26,45.1]
[1672882332644,0.06129259,13.272,13.261,10.0]
[1672882333064,0.06129259,13.272,13.262,45.1]
[1672882333276,0.06129259,13.272,13.263,10.0]
[1672882333694,0.06129259,13.272,13.264,45.35]
[1672882334117,0.06129259,13.272,13.269,45.35]
[1672882334332,0.1608372,13.273,13.269,45.35]
[1672882334957,0.1608372,13.273,13.272,45.35]
[1672882335488,0.06302389,13.275,13.273,10.0]
[1672882335699,0.07035365,13.279,13.274,45.35]
[1672882335906,0.06555716,13.281,13.276,45.35]
[1672882336111,0.06598804,13.283,13.277,10.0]
[1672882336327,0.06574196,13.285,13.277,10.0]
[1672882336852,0.06574196,13.285,13.278,45.1]
[1672882337057,0.06574196,13.285,13.28,45.35]
[1672882337273,0.00574196,13.285,13.283,45.35]
[1672882337478,45.21,13.296,13.283,45.35]
[1672882337904,45.35,13.294,13.281,55.1]
[1672882338211,0.06415825,13.292,13.283,0.06043357]
[1672882338426,0.06415825,13.292,13.285,44.9]
[1672882338846,0.06415825,13.292,13.286,10.0]
[1672882340424,0.06415825,13.292,13.284,10.0]
[1672882341266,0.06415825,13.292,13.284,55.1]
[1672882341899,0.06415825,13.292,13.285,45.35]